fUSD/lending_fUSD_20260516
["ID","MTS","AMOUNT","RATE_DAILY","PERIOD"]
[422402555,1778935894000,-700.0,0.00039726,120]
[422402551,1778935894000,-700.0,0.00039726,120]
[422402525,1778935894000,-301.68,0.00039707,120]
[422402556,1778935894000,-700.0,0.00039726,120]
[422402520,1778935894000,-52700.72487879,0.0003969,120]
[422402497,1778935894000,-250.0,0.00039582,62]
[422402498,1778935894000,-287.9,0.0003959,120]
[422402499,1778935894000,-49873.0,0.000396,15]
[422402494,1778935894000,-250.0,0.00039533,62]
[422402496,1778935894000,-150.0,0.00039579,2]
[422402495,1778935894000,-150.0,0.00039556,120]
[422402504,1778935894000,-172.76454415,0.00039616,2]
[422402511,1778935894000,-250.0,0.00039671,64]
[422402500,1778935894000,-152.0,0.000396,120]
[422402502,1778935894000,-2500.0,0.000396,60]
[422402503,1778935894000,-250.0,0.00039603,63]
[422402501,1778935894000,-45821.21279378,0.000396,30]
[422402506,1778935894000,-157.78723388,0.00039618,2]
[422402509,1778935894000,-161.54606726,0.00039655,2]
[422402505,1778935894000,-250.0,0.00039616,120]
[422402507,1778935894000,-158.74950013,0.00039647,2]
[422402508,1778935894000,-151.20818845,0.00039647,2]
[422402510,1778935894000,-207.64652684,0.00039664,2]
[422402513,1778935894000,-1034.63587362,0.00039688,30]
[422402523,1778935894000,-2000.0,0.00039707,120]
[422402524,1778935894000,-248.74,0.00039707,120]
[422402514,1778935894000,-250.0,0.00039688,64]
[422402512,1778935894000,-158.76859787,0.00039675,2]
[422402515,1778935894000,-250.0,0.00039688,64]
[422402516,1778935894000,-164.79883082,0.00039688,2]
[422402518,1778935894000,-3466.0,0.0003969,120]
[422402517,1778935894000,-25166.57090723,0.0003969,30]
[422402521,1778935894000,-199.29,0.000397,6]
[422402519,1778935894000,-6573.0,0.0003969,120]
[422402522,1778935894000,-211.0,0.000397,120]
[422402564,1778935894000,-700.0,0.00039726,120]
[422402621,1778935894000,-250.0,0.00039737,65]
[422402562,1778935894000,-700.0,0.00039726,120]
[422402593,1778935894000,-700.0,0.00039726,120]
[422402603,1778935894000,-700.0,0.00039726,120]
[422402595,1778935894000,-700.0,0.00039726,120]
[422402594,1778935894000,-700.0,0.00039726,120]
[422402598,1778935894000,-700.0,0.00039726,120]
[422402592,1778935894000,-700.0,0.00039726,120]
[422402596,1778935894000,-700.0,0.00039726,120]
[422402599,1778935894000,-700.0,0.00039726,120]
[422402597,1778935894000,-700.0,0.00039726,120]
[422402601,1778935894000,-700.0,0.00039726,120]
[422402602,1778935894000,-700.0,0.00039726,120]
[422402600,1778935894000,-700.0,0.00039726,120]
[422402604,1778935894000,-700.0,0.00039726,120]
[422402606,1778935894000,-700.0,0.00039726,120]
[422402609,1778935894000,-700.0,0.00039726,120]
[422402610,1778935894000,-700.0,0.00039726,120]
[422402605,1778935894000,-700.0,0.00039726,120]
[422402608,1778935894000,-700.0,0.00039726,120]
[422402616,1778935894000,-28547.33665151,0.00039726,2]
[422402615,1778935894000,-1504.8,0.00039726,60]
[422402614,1778935894000,-700.0,0.00039726,120]
[422402607,1778935894000,-700.0,0.00039726,120]
[422402613,1778935894000,-700.0,0.00039726,120]
[422402611,1778935894000,-700.0,0.00039726,120]
[422402612,1778935894000,-700.0,0.00039726,120]
[422402618,1778935894000,-150.0,0.00039726,30]
[422402617,1778935894000,-1759.39924243,0.00039726,10]
[422402619,1778935894000,-258.0,0.00039726,30]
[422402553,1778935894000,-700.0,0.00039726,120]
[422402587,1778935894000,-700.0,0.00039726,120]
[422402589,1778935894000,-700.0,0.00039726,120]
[422402620,1778935894000,-150.0,0.00039734,120]
[422402585,1778935894000,-700.0,0.00039726,120]
[422402588,1778935894000,-700.0,0.00039726,120]
[422402557,1778935894000,-700.0,0.00039726,120]
[422402560,1778935894000,-700.0,0.00039726,120]
[422402563,1778935894000,-700.0,0.00039726,120]
[422402565,1778935894000,-700.0,0.00039726,120]
[422402561,1778935894000,-700.0,0.00039726,120]
[422402559,1778935894000,-700.0,0.00039726,120]
[422402567,1778935894000,-700.0,0.00039726,120]
[422402577,1778935894000,-700.0,0.00039726,120]
[422402566,1778935894000,-700.0,0.00039726,120]
[422402578,1778935894000,-700.0,0.00039726,120]
[422402574,1778935894000,-700.0,0.00039726,120]
[422402570,1778935894000,-700.0,0.00039726,120]
[422402572,1778935894000,-700.0,0.00039726,120]
[422402558,1778935894000,-700.0,0.00039726,120]
[422402568,1778935894000,-700.0,0.00039726,120]
[422402576,1778935894000,-700.0,0.00039726,120]
[422402586,1778935894000,-700.0,0.00039726,120]
[422402583,1778935894000,-700.0,0.00039726,120]
[422402591,1778935894000,-700.0,0.00039726,120]
[422402590,1778935894000,-700.0,0.00039726,120]
[422402582,1778935894000,-700.0,0.00039726,120]
[422402581,1778935894000,-700.0,0.00039726,120]
[422402580,1778935894000,-700.0,0.00039726,120]
[422402584,1778935894000,-700.0,0.00039726,120]
[422402575,1778935894000,-700.0,0.00039726,120]
[422402573,1778935894000,-700.0,0.00039726,120]
[422402571,1778935894000,-700.0,0.00039726,120]
[422402569,1778935894000,-700.0,0.00039726,120]
[422402579,1778935894000,-700.0,0.00039726,120]
[422402661,1778935895000,-599.65,0.00039992,120]
[422402666,1778935895000,-647.65,0.00039998,120]
[422402662,1778935895000,-1003.85,0.00039992,120]
[422402660,1778935895000,-928.07,0.00039992,120]
[422402663,1778935895000,-526.7,0.00039992,120]
[422402656,1778935895000,-2738.60766019,0.00039975,12]
[422402664,1778935895000,-6618.64612584,0.00039995,120]
[422402654,1778935895000,-161.54606726,0.00039955,2]
[422402658,1778935895000,-250.0,0.00039984,68]
[422402657,1778935895000,-250.0,0.00039981,68]
[422402655,1778935895000,-75423.06867682,0.0003997,2]
[422402659,1778935895000,-164.79883082,0.00039988,2]
[422402676,1778935895000,-164.0276154,0.0004,2]
[422402670,1778935895000,-24142.03180009,0.0004,2]
[422402671,1778935895000,-396.46645094,0.0004,2]
[422402675,1778935895000,-319.6598269,0.0004,2]
[422402669,1778935895000,-436.15472726,0.0004,7]
[422402665,1778935895000,-151.0,0.00039997,14]
[422402667,1778935895000,-3163.47353179,0.00039999,2]
[422402668,1778935895000,-10243.63514862,0.0004,7]
[422402674,1778935895000,-363.502165,0.0004,15]
[422402673,1778935895000,-4177.29882223,0.0004,2]
[422402672,1778935895000,-1586.19990505,0.0004,2]
[422402678,1778935895000,-515.70831953,0.0004,2]
[422402679,1778935895000,-30149.83288935,0.0004,2]
[422402685,1778935895000,-268.26724351,0.0004,12]
[422402653,1778935895000,-831.0,0.00039952,16]
[422402682,1778935895000,-150.0,0.0004,7]
[422402677,1778935895000,-10864.9928509,0.0004,2]
[422402648,1778935895000,-421.00527482,0.000399,120]
[422402630,1778935895000,-250.0,0.00039801,65]
[422402650,1778935895000,-167.1,0.000399,120]
[422402686,1778935895000,-15182.0772768,0.0004,5]
[422402622,1778935895000,-222.27603702,0.00039737,2]
[422402623,1778935895000,-158.74950013,0.00039747,2]
[422402624,1778935895000,-151.20818845,0.00039747,2]
[422402625,1778935895000,-161.54606726,0.00039755,2]
[422402626,1778935895000,-207.64652684,0.00039764,2]
[422402627,1778935895000,-158.76859787,0.00039775,2]
[422402628,1778935895000,-164.79883082,0.00039788,2]
[422402629,1778935895000,-250.0,0.0003979,65]
[422402633,1778935895000,-216.0,0.0003981,30]
[422402634,1778935895000,-172.76454415,0.00039816,2]
[422402639,1778935895000,-250.0,0.00039864,66]
[422402638,1778935895000,-500.0,0.00039863,120]
[422402646,1778935895000,-550987.12716205,0.000399,20]
[422402635,1778935895000,-151.20818845,0.00039847,2]
[422402636,1778935895000,-150.0,0.00039849,120]
[422402637,1778935895000,-161.54606726,0.00039855,2]
[422402631,1778935895000,-275.0,0.00039806,30]
[422402641,1778935895000,-250.0,0.00039888,67]
[422402642,1778935895000,-250.0,0.00039888,67]
[422402640,1778935895000,-1126.15955258,0.0003988,30]
[422402651,1778935895000,-250.0,0.00039925,67]
[422402652,1778935895000,-73420.59027624,0.0003995,120]
[422402643,1778935895000,-164.79883082,0.00039888,2]
[422402644,1778935895000,-157.78723388,0.00039892,2]
[422402649,1778935895000,-9821.08078388,0.000399,30]
[422402647,1778935895000,-1390.14490868,0.000399,120]
[422402645,1778935895000,-15905.50761175,0.000399,2]
[422402632,1778935895000,-150.0,0.0003981,30]
[422402680,1778935895000,-610.41264002,0.0004,2]
[422402683,1778935895000,-330.0,0.0004,15]
[422402681,1778935895000,-3504.0,0.0004,7]
[422402729,1778935895000,-1000.0,0.0004,120]
[422402725,1778935895000,-1000.0,0.0004,120]
[422402727,1778935895000,-1000.0,0.0004,120]
[422402722,1778935895000,-1000.0,0.0004,120]
[422402724,1778935895000,-1000.0,0.0004,120]
[422402728,1778935895000,-1000.0,0.0004,120]
[422402718,1778935895000,-1000.0,0.0004,120]
[422402721,1778935895000,-1000.0,0.0004,120]
[422402723,1778935895000,-1000.0,0.0004,120]
[422402720,1778935895000,-1000.0,0.0004,120]
[422402726,1778935895000,-1000.0,0.0004,120]
[422402730,1778935895000,-1000.0,0.0004,120]
[422402732,1778935895000,-1000.0,0.0004,120]
[422402731,1778935895000,-1000.0,0.0004,120]
[422402733,1778935895000,-1000.0,0.0004,120]
[422402740,1778935895000,-477.12749073,0.0004,30]
[422402742,1778935895000,-222443.09175629,0.0004,120]
[422402741,1778935895000,-186.60102968,0.0004,120]
[422402734,1778935895000,-1000.0,0.0004,120]
[422402736,1778935895000,-1187.0608924,0.0004,120]
[422402735,1778935895000,-1000.0,0.0004,120]
[422402738,1778935895000,-416.53224299,0.0004,120]
[422402739,1778935895000,-250.0,0.0004,120]
[422402737,1778935895000,-299.21638568,0.0004,120]
[422402744,1778935895000,-300.10343111,0.0004,60]
[422402743,1778935895000,-12754.84849388,0.0004,30]
[422402745,1778935895000,-302.2180994,0.0004,30]
[422402684,1778935895000,-162.27645833,0.0004,2]
[422402746,1778935895000,-4364.25265282,0.0004,120]
[422402719,1778935895000,-1000.0,0.0004,120]
[422402711,1778935895000,-1000.0,0.0004,120]
[422402747,1778935895000,-178.63725172,0.0004,60]
[422402714,1778935895000,-1000.0,0.0004,120]
[422402688,1778935895000,-5000.0,0.0004,10]
[422402687,1778935895000,-14191.237425,0.0004,2]
[422402689,1778935895000,-5000.0,0.0004,7]
[422402690,1778935895000,-10011.0,0.0004,7]
[422402692,1778935895000,-518.0,0.0004,2]
[422402691,1778935895000,-10000.0,0.0004,7]
[422402693,1778935895000,-20000.0,0.0004,15]
[422402716,1778935895000,-1000.0,0.0004,120]
[422402702,1778935895000,-550.0,0.0004,3]
[422402704,1778935895000,-163.47,0.0004,120]
[422402695,1778935895000,-165.3,0.0004,7]
[422402703,1778935895000,-644.560927,0.0004,2]
[422402697,1778935895000,-230.39759,0.0004,10]
[422402698,1778935895000,-30000.0,0.0004,10]
[422402694,1778935895000,-1708.28121353,0.0004,2]
[422402699,1778935895000,-227.19141246,0.0004,7]
[422402696,1778935895000,-163.52171914,0.0004,14]
[422402706,1778935895000,-1000.0,0.0004,120]
[422402713,1778935895000,-1000.0,0.0004,120]
[422402715,1778935895000,-1000.0,0.0004,120]
[422402712,1778935895000,-1000.0,0.0004,120]
[422402710,1778935895000,-1000.0,0.0004,120]
[422402717,1778935895000,-1000.0,0.0004,120]
[422402707,1778935895000,-1000.0,0.0004,120]
[422402705,1778935895000,-1000.0,0.0004,120]
[422402708,1778935895000,-1000.0,0.0004,120]
[422402700,1778935895000,-10164.83386079,0.0004,6]
[422402701,1778935895000,-158.0,0.0004,2]
[422402709,1778935895000,-1000.0,0.0004,120]
[422402787,1778935896000,-158.0,0.0004,120]
[422402789,1778935896000,-609.12,0.0004,120]
[422402790,1778935896000,-1000.0,0.0004,120]
[422402791,1778935896000,-1000.0,0.0004,120]
[422402782,1778935896000,-1000.0,0.0004,90]
[422402777,1778935896000,-1000.0,0.0004,30]
[422402776,1778935896000,-300.0,0.0004,120]
[422402784,1778935896000,-215.0,0.0004,30]
[422402780,1778935896000,-3250.47,0.0004,30]
[422402783,1778935896000,-186.84835723,0.0004,2]
[422402779,1778935896000,-189.41294523,0.0004,2]
[422402785,1778935896000,-5000.0,0.0004,90]
[422402792,1778935896000,-7283.01,0.0004,14]
[422402801,1778935896000,-153.58,0.0004,120]
[422402795,1778935896000,-3057.219249,0.0004,56]
[422402797,1778935896000,-900.0,0.0004,2]
[422402793,1778935896000,-57394.23834948,0.0004,30]
[422402796,1778935896000,-1539.0,0.0004,120]
[422402788,1778935896000,-343.910955,0.0004,30]
[422402794,1778935896000,-1851.6139031,0.0004,120]
[422402799,1778935896000,-3776.31,0.0004,120]
[422402800,1778935896000,-1524.71,0.0004,120]
[422402812,1778935896000,-215.0,0.0004,30]
[422402802,1778935896000,-695.08,0.0004,120]
[422402813,1778935896000,-500.0,0.0004,120]
[422402814,1778935896000,-500.0,0.0004,120]
[422402775,1778935896000,-229.08369876,0.0004,120]
[422402798,1778935896000,-100380.0,0.0004,30]
[422402781,1778935896000,-180.0,0.0004,2]
[422402762,1778935896000,-154054.00613174,0.0004,30]
[422402778,1778935896000,-178.45,0.0004,120]
[422402803,1778935896000,-301.81,0.0004,120]
[422402754,1778935896000,-246.66084499,0.0004,30]
[422402748,1778935896000,-612.59570565,0.0004,30]
[422402750,1778935896000,-275.78722379,0.0004,120]
[422402753,1778935896000,-703.89356415,0.0004,120]
[422402751,1778935896000,-615.81254803,0.0004,30]
[422402752,1778935896000,-405.77770267,0.0004,120]
[422402749,1778935896000,-217.71572448,0.0004,30]
[422402755,1778935896000,-300.34301337,0.0004,120]
[422402757,1778935896000,-18257.28434558,0.0004,30]
[422402756,1778935896000,-402.95193305,0.0004,120]
[422402759,1778935896000,-355.55986973,0.0004,120]
[422402758,1778935896000,-435.58700537,0.0004,120]
[422402760,1778935896000,-257.03266964,0.0004,120]
[422402761,1778935896000,-498.62441733,0.0004,120]
[422402767,1778935896000,-553.04241721,0.0004,120]
[422402768,1778935896000,-278.05987868,0.0004,60]
[422402765,1778935896000,-1211.0065671,0.0004,120]
[422402766,1778935896000,-250.96998947,0.0004,120]
[422402764,1778935896000,-540.0,0.0004,30]
[422402763,1778935896000,-578.52935418,0.0004,30]
[422402769,1778935896000,-541.73497644,0.0004,30]
[422402773,1778935896000,-384.1297323,0.0004,120]
[422402771,1778935896000,-2017.53208066,0.0004,120]
[422402772,1778935896000,-155.08904945,0.0004,120]
[422402770,1778935896000,-1167.2364125,0.0004,120]
[422402774,1778935896000,-397.46391884,0.0004,30]
[422402786,1778935896000,-1075.0,0.0004,30]
[422402806,1778935896000,-398.35,0.0004,120]
[422402804,1778935896000,-688.78,0.0004,120]
[422402811,1778935896000,-99999.999999,0.0004,120]
[422402844,1778935896000,-500.0,0.0004,31]
[422402843,1778935896000,-500.0,0.0004,31]
[422402841,1778935896000,-500.0,0.0004,31]
[422402848,1778935896000,-500.0,0.0004,31]
[422402847,1778935896000,-500.0,0.0004,31]
[422402849,1778935896000,-500.0,0.0004,31]
[422402852,1778935896000,-500.0,0.0004,31]
[422402846,1778935896000,-598.25399402,0.0004,31]
[422402853,1778935896000,-272.0524781,0.0004,31]
[422402850,1778935896000,-500.0,0.0004,31]
[422402845,1778935896000,-500.0,0.0004,31]
[422402851,1778935896000,-500.0,0.0004,31]
[422402867,1778935896000,-500.0,0.0004,31]
[422402842,1778935896000,-500.0,0.0004,31]
[422402855,1778935896000,-500.0,0.0004,31]
[422402856,1778935896000,-500.0,0.0004,31]
[422402865,1778935896000,-550.0,0.0004,31]
[422402866,1778935896000,-500.0,0.0004,31]
[422402857,1778935896000,-500.0,0.0004,31]
[422402860,1778935896000,-500.0,0.0004,31]
[422402858,1778935896000,-500.0,0.0004,31]
[422402863,1778935896000,-181.52718186,0.0004,31]
[422402859,1778935896000,-500.0,0.0004,31]
[422402864,1778935896000,-461.42397058,0.0004,31]
[422402861,1778935896000,-500.0,0.0004,31]
[422402862,1778935896000,-500.0,0.0004,31]
[422402868,1778935896000,-500.0,0.0004,31]
[422402869,1778935896000,-500.0,0.0004,31]
[422402854,1778935896000,-500.0,0.0004,31]
[422402840,1778935896000,-500.0,0.0004,31]
[422402805,1778935896000,-1516.03,0.0004,120]
[422402833,1778935896000,-500.0,0.0004,31]
[422402836,1778935896000,-500.0,0.0004,31]
[422402870,1778935896000,-500.0,0.0004,31]
[422402809,1778935896000,-502.5,0.0004,120]
[422402807,1778935896000,-345.86,0.0004,120]
[422402808,1778935896000,-1032.75,0.0004,120]
[422402810,1778935896000,-160.0,0.0004,120]
[422402815,1778935896000,-500.0,0.0004,120]
[422402817,1778935896000,-500.0,0.0004,120]
[422402816,1778935896000,-500.0,0.0004,120]
[422402820,1778935896000,-500.0,0.0004,120]
[422402826,1778935896000,-520.7535454,0.0004,120]
[422402827,1778935896000,-415.20173857,0.0004,31]
[422402819,1778935896000,-500.0,0.0004,120]
[422402822,1778935896000,-500.0,0.0004,120]
[422402818,1778935896000,-500.0,0.0004,120]
[422402824,1778935896000,-500.0,0.0004,120]
[422402823,1778935896000,-500.0,0.0004,120]
[422402837,1778935896000,-500.0,0.0004,31]
[422402832,1778935896000,-422.97687772,0.0004,31]
[422402831,1778935896000,-500.0,0.0004,31]
[422402830,1778935896000,-500.0,0.0004,31]
[422402834,1778935896000,-500.0,0.0004,31]
[422402839,1778935896000,-500.0,0.0004,31]
[422402838,1778935896000,-500.0,0.0004,31]
[422402835,1778935896000,-445.24840143,0.0004,31]
[422402829,1778935896000,-500.0,0.0004,31]
[422402821,1778935896000,-500.0,0.0004,120]
[422402825,1778935896000,-500.0,0.0004,120]
[422402828,1778935896000,-189.52755627,0.0004,31]
[422402922,1778935897000,-160.0,0.000402,50]
[422402912,1778935897000,-250.0,0.00040137,120]
[422402909,1778935897000,-165.20918206,0.00040117,2]
[422402911,1778935897000,-150.01,0.00040118,120]
[422402921,1778935897000,-160.0,0.000402,50]
[422402902,1778935897000,-287.9,0.0004007,120]
[422402910,1778935897000,-1673.9,0.00040118,120]
[422402903,1778935897000,-250.0,0.00040071,69]
[422402905,1778935897000,-644.71,0.00040092,6]
[422402901,1778935897000,-195.0,0.00040062,60]
[422402913,1778935897000,-150.0,0.00040138,120]
[422402920,1778935897000,-160.0,0.000402,50]
[422402915,1778935897000,-350.0,0.000402,120]
[422402932,1778935897000,-500.0,0.00040287,30]
[422402918,1778935897000,-160.0,0.000402,50]
[422402917,1778935897000,-295.0,0.000402,120]
[422402919,1778935897000,-160.0,0.000402,50]
[422402916,1778935897000,-350.0,0.000402,120]
[422402923,1778935897000,-839.33,0.000402,30]
[422402924,1778935897000,-250.0,0.00040205,72]
[422402927,1778935897000,-150.0,0.00040247,120]
[422402928,1778935897000,-272.60633134,0.00040247,120]
[422402935,1778935897000,-500.0,0.00040287,30]
[422402925,1778935897000,-150.0,0.00040214,120]
[422402934,1778935897000,-500.0,0.00040287,30]
[422402926,1778935897000,-250.0,0.00040238,72]
[422402933,1778935897000,-500.0,0.00040287,30]
[422402900,1778935897000,-150.0,0.00040062,60]
[422402914,1778935897000,-157.78723388,0.00040166,2]
[422402904,1778935897000,-254.83,0.00040092,6]
[422402881,1778935897000,-500.0,0.0004,31]
[422402908,1778935897000,-211.0,0.000401,120]
[422402879,1778935897000,-500.0,0.0004,31]
[422402929,1778935897000,-612.46,0.00040251,120]
[422402874,1778935897000,-500.0,0.0004,31]
[422402871,1778935897000,-500.0,0.0004,31]
[422402880,1778935897000,-249.17236759,0.0004,31]
[422402872,1778935897000,-514.60282772,0.0004,31]
[422402877,1778935897000,-500.0,0.0004,31]
[422402878,1778935897000,-1057.6173992,0.0004,31]
[422402875,1778935897000,-500.0,0.0004,31]
[422402876,1778935897000,-1057.6173992,0.0004,31]
[422402882,1778935897000,-500.0,0.0004,31]
[422402893,1778935897000,-1303.72745835,0.0004,60]
[422402894,1778935897000,-150.0,0.00040009,120]
[422402892,1778935897000,-1303.72745835,0.0004,30]
[422402889,1778935897000,-1498.29131553,0.0004,31]
[422402884,1778935897000,-500.0,0.0004,31]
[422402886,1778935897000,-1057.6173992,0.0004,31]
[422402883,1778935897000,-1057.6173992,0.0004,31]
[422402891,1778935897000,-1303.72745835,0.0004,30]
[422402890,1778935897000,-500.0,0.0004,120]
[422402885,1778935897000,-152.81573525,0.0004,31]
[422402887,1778935897000,-1057.6173992,0.0004,31]
[422402888,1778935897000,-217.0,0.0004,30]
[422402895,1778935897000,-337.76168081,0.00040035,7]
[422402898,1778935897000,-330.0,0.00040047,69]
[422402899,1778935897000,-161.54606726,0.00040055,2]
[422402897,1778935897000,-465.41,0.00040044,120]
[422402896,1778935897000,-1460.15,0.00040044,120]
[422402907,1778935897000,-37000.0,0.000401,31]
[422402906,1778935897000,-250.0,0.00040097,70]
[422402873,1778935897000,-500.0,0.0004,31]
[422402931,1778935897000,-500.0,0.00040287,30]
[422402937,1778935897000,-152.0,0.000403,120]
[422402966,1778935897000,-150.0,0.0004042,10]
[422402971,1778935897000,-157.78723388,0.0004044,2]
[422402972,1778935897000,-157.27,0.00040469,2]
[422402974,1778935897000,-150.0,0.00040471,120]
[422402976,1778935897000,-150.0,0.00040482,120]
[422402978,1778935897000,-250.0,0.00040493,77]
[422402984,1778935897000,-320.42494693,0.000405,120]
[422402981,1778935897000,-211.0,0.000405,120]
[422402975,1778935897000,-150.0,0.00040478,2]
[422402983,1778935897000,-285.6800824,0.000405,120]
[422402980,1778935897000,-2000.0,0.000405,2]
[422402979,1778935897000,-168.96,0.000405,7]
[422402977,1778935897000,-831.0,0.00040486,16]
[422402985,1778935897000,-212.05012616,0.000405,60]
[422402982,1778935897000,-250.0,0.000405,120]
[422402987,1778935897000,-2076.15838765,0.000405,120]
[422402997,1778935897000,-1000.0,0.00040517,120]
[422402988,1778935897000,-1799.22046513,0.000405,120]
[422402986,1778935897000,-1531.44951573,0.000405,30]
[422402998,1778935897000,-1000.0,0.00040517,120]
[422402989,1778935897000,-1296.58145655,0.000405,120]
[422402991,1778935897000,-1000.0,0.000405,90]
[422402996,1778935897000,-1000.0,0.00040517,120]
[422402992,1778935897000,-500.0,0.00040505,57]
[422402994,1778935897000,-157.57352818,0.00040507,60]
[422402993,1778935897000,-316.83200437,0.00040507,120]
[422402995,1778935897000,-500.0,0.00040507,60]
[422402990,1778935897000,-1256.55167276,0.000405,120]
[422402930,1778935897000,-5449.98,0.00040273,108]
[422402967,1778935897000,-150.0,0.0004042,10]
[422402965,1778935897000,-150.0,0.0004042,10]
[422402999,1778935897000,-500.0,0.00040517,120]
[422402970,1778935897000,-208.0,0.0004042,10]
[422402962,1778935897000,-150.0,0.0004042,10]
[422402948,1778935897000,-250.0,0.00040392,75]
[422402936,1778935897000,-152.84,0.00040292,30]
[422402938,1778935897000,-185.44172279,0.000403,30]
[422402939,1778935897000,-250.0,0.00040306,73]
[422402943,1778935897000,-2441.06268296,0.0004032,120]
[422402941,1778935897000,-250.0,0.00040315,30]
[422402942,1778935897000,-183.0,0.00040315,30]
[422402946,1778935897000,-331.84,0.00040392,30]
[422402945,1778935897000,-150.0,0.00040341,120]
[422402940,1778935897000,-250.0,0.00040315,30]
[422402944,1778935897000,-302.0,0.00040338,120]
[422402949,1778935897000,-491.8,0.000404,120]
[422402951,1778935897000,-1460.0,0.00040411,120]
[422402952,1778935897000,-150.0,0.0004042,10]
[422402947,1778935897000,-497.76638659,0.00040392,30]
[422402961,1778935897000,-150.0,0.0004042,10]
[422402954,1778935897000,-150.0,0.0004042,10]
[422402968,1778935897000,-150.0,0.0004042,10]
[422402964,1778935897000,-150.0,0.0004042,10]
[422402969,1778935897000,-150.0,0.0004042,10]
[422402973,1778935897000,-150.0,0.00040471,120]
[422402959,1778935897000,-150.0,0.0004042,10]
[422402963,1778935897000,-150.0,0.0004042,10]
[422402956,1778935897000,-150.0,0.0004042,10]
[422402960,1778935897000,-150.0,0.0004042,10]
[422402953,1778935897000,-150.0,0.0004042,10]
[422402955,1778935897000,-150.0,0.0004042,10]
[422402957,1778935897000,-150.0,0.0004042,10]
[422402950,1778935897000,-250.0,0.00040402,75]
[422402958,1778935897000,-150.0,0.0004042,10]
[422403043,1778935898000,-1000.0,0.00040517,120]
[422403042,1778935898000,-1000.0,0.00040517,120]
[422403044,1778935898000,-1000.0,0.00040517,120]
[422403040,1778935898000,-1000.0,0.00040517,120]
[422403039,1778935898000,-1000.0,0.00040517,120]
[422403034,1778935898000,-1000.0,0.00040517,120]
[422403038,1778935898000,-1000.0,0.00040517,120]
[422403037,1778935898000,-1000.0,0.00040517,120]
[422403046,1778935898000,-1000.0,0.00040517,120]
[422403035,1778935898000,-1000.0,0.00040517,120]
[422403036,1778935898000,-1000.0,0.00040517,120]
[422403041,1778935898000,-1000.0,0.00040517,120]
[422403045,1778935898000,-1000.0,0.00040517,120]
[422403053,1778935898000,-50000.0,0.00040517,62]
[422403049,1778935898000,-1000.0,0.00040517,120]
[422403051,1778935898000,-50000.0,0.00040517,60]
[422403050,1778935898000,-1000.0,0.00040517,120]
[422403054,1778935898000,-500.0,0.00040517,120]
[422403055,1778935898000,-500.0,0.00040517,120]
[422403057,1778935898000,-500.0,0.00040517,120]
[422403059,1778935898000,-500.0,0.00040517,120]